{"text_format":"1","workbook":"xlsx","n_sheets":25,"sheets":["LIES MICH","Inventarverz_ANLAGENSPIEGEL","01-EBK-SACHANLAGEN","070_Aktivierungsfähige Rechte","000_Bebaute Grundstücke","001_Unbebaute Grundstücke","002_Straßenbauten","003_Grundstücke z Straßenbauten","004_Wasser_Abwasserbauten_Anlag","005_Anlagen zu Straßenbauten","006_Sonst-Grundstückseinricht","010_Gebäude und Bauten","015-Kulturgüter unbeweglich","020_Maschinen und masch Anlagen","030_Werkzeuge und sonst. Erzeug","040_Fahrzeuge","042_Amts-Betriebs-Geschäftsauss","046_Kulturgüter beweglich","050_Sonderanlagen","280_Geleist_Anzahlung_Anlagen","060_ Im Bau bef GrundstücksEinr","061_ Im Bau bef Geb_Bauten","062_ Im Bau bef Anlagen_Fahrz_M","063_ Im Bau befindl Anlagen","Hintergrund "],"not_rendered":{"charts":0,"images":61,"macros":1,"external_links":8,"defined_names":73,"comments":11,"pivot_tables":0},"unopened":[],"bounds":{"document_bytes":16777216,"sheet_cells":100000,"rows_first":2000,"rows_last":500,"rows_between":2000,"halvings":0,"cell_chars":16384,"cell_head_chars":4096},"cells_cut":0,"cells_raw":0,"read":"whole","date_system":"1900"}

{"sheet":"LIES MICH","index":0,"n_rows":68,"n_cols":8,"rows_kept":68,"cut":false,"hidden":false,"merged":[[5,7,5,15]]}
[]
[null,"Herzlich Willkommen!",null,null,null,null,"Hinweis:"]
[null,"Beachte bitte: Die Blätter dieser Arbeitsmappe sind geschützt!",null,null,null,null,"Bei der Zuordnung von Sachgütern zu den einzelnen Konten hat der Steirische Leitfaden "]
[null,"Der Autor wünscht viel Erfolg beim Durcharbeiten dieser Beispieldatei!",null,null,null,null,"absoluten Vorrang! Er ist von einem Expertenteam erstellt worden!"]
[null,"Noch mehr Informationen findest Du auf ",null,null,"https://www.kommunale-doppik.at",null,null,"Download hier:"]
[null,"Rückmeldungen bitte an: ",null,null,"norbert-schweiger@aon.at",null,null,"https://www.verwaltung.steiermark.at/cms/dokumente/12548650_134176599/4a1f80da/2018_Leitfaden_Erfassung_Vermögenswerte_Version1_0_20181219.pdf"]
[null,"Alles Gute und viel Erfolg!"]
[]
[]
[]
[]
[]
[]
[]
[]
[]
[]
[]
[]
[]
[]
[]
[]
[]
[]
[]
[]
[]
[]
[]
[]
[]
[]
[]
[]
[]
[]
[]
[]
[]
[]
[]
[]
[]
[]
[]
[]
[]
[]
[]
[]
[]
[]
[]
[]
[]
[]
[]
[]
[]
[]
[]
[]
[]
[]
[]
[]
[null,null,null,"Inventarverz_ANLAGENSPIEGEL!A1"]

{"sheet":"Inventarverz_ANLAGENSPIEGEL","index":1,"n_rows":4,"n_cols":1,"rows_kept":4,"cut":false,"hidden":false,"merged":[]}
[]
[]
[]
["LIES MICH'!A1"]

{"sheet":"01-EBK-SACHANLAGEN","index":2,"n_rows":66,"n_cols":19,"rows_kept":66,"cut":false,"hidden":false,"merged":[[8,18,11,18],[28,18,36,18],[26,7,26,8],[10,15,36,16],[33,14,36,14],[29,14,30,14],[23,14,25,14],[10,14,15,14],[16,7,16,8],[18,7,18,8],[20,7,20,8],[6,13,6,14],[6,16,7,16],[8,16,9,16],[22,7,22,8],[3,9,3,16],[8,7,9,8],[4,7,6,8],[8,13,8,14]]}
[]
[null,null,null,null,null,null,"Zu LIES MICH",null,null,"Gemeindekennzahl",null,"Gemeindebezeichnung",null,null,null,"Zu LIES MICH"]
[null,null,null,null,null,null,null,null,null,0,null,"Gemeinde MUSTER",null,"Werte per 31.12.2019 = 01.01.2020"]
[null,"Bilanz-Position",null,"Konto","Bezeichnung","Betrag",null,"Datum der Erfassung","Datum der Bewertung","Vermögenshaushalt - SACHANLAGEN  (Eröffnungsbilanz)"]
[null,"A.I","I0",70,"Rechte",{"$f":"'070_Aktivierungsfähige Rechte'!B20","v":40200},null,null,null,"Ebene","Position/Gruppe","A K T I V A","Code","Betrag Position","Betrag Gruppe","Betrag A.I/A.II","Summe langfristiges  immat. Vermögen und Sachvermögen",null,"Abschreibung ab 2020"]
[null,"A.I","I1",70,"Lizenzen",{"$f":"#REF!","v":{"$error":"#REF!"}},null,null,null,0,"A","Langfristiges Vermögen",10,null,null,null,{"$f":"P7+P9","v":14796704.89452105},null,{"$f":"SUM(S8:S28)","v":374827.90644634259}]
[null,"A.I","I2",70,"Software",{"$f":"#REF!","v":{"$error":"#REF!"}},null,null,null,1,"A.I","Immaterielle Vermögenswerte",101,{"$f":"N8","v":40200},null,{"$f":"N7","v":40200},"© Norbert Schweiger 01/2018"]
[null,"A.II.1",1,1,"Unbebaute Grundstücke und land-und fw. Grundstücke   [003]",{"$f":"'001_Unbebaute Grundstücke'!B22+#REF!","v":{"$error":"#REF!"}},null,{"$f":"'070_Aktivierungsfähige Rechte'!B22","v":"2018-10-15"},{"$f":"'070_Aktivierungsfähige Rechte'!B24","v":"2018-10-15"},"Klick",70,"Aktivierungsfähige Rechte (immaterielle Vermögenswerte)",1010,{"$f":"'070_Aktivierungsfähige Rechte'!B20","v":40200},null,null,null,null,{"$f":"'070_Aktivierungsfähige Rechte'!B27","v":5100}]
[null,"A.II.1",2,0,"Bebaute Grundstücke",{"$f":"'000_Bebaute Grundstücke'!B20","v":1944477.75},null,null,null,1,"A.II","SACHANLAGEN",102,null,null,{"$f":"O10+O17+O19+O21+O23+O27+O29+O32","v":14756504.89452105}]
[null,null,"04a",2,"Straßenbauten",{"$f":"'002_Straßenbauten'!B17","v":4577224},null,null,null,2,"A.II.1","Grundstücke und Grundstückseinrichtungen  und Infrastruktur",1021,null,{"$f":"SUM(N11:N16)","v":11994706.08}]
[null,null,"02a",3,"Grundstücke zu Straßenbauten",{"$f":"'003_Grundstücke z Straßenbauten'!B20","v":218520.00000000003},null,{"$f":"'000_Bebaute Grundstücke'!B22","v":"2018-10-22"},{"$f":"'000_Bebaute Grundstücke'!B24","v":"2018-10-22"},"Klick",0,"Bebaute Grundstücke",1021,{"$f":"'000_Bebaute Grundstücke'!B20","v":1944477.75}]
[null,null,"04b",5,"Bauliche Anlagen zu Straßenbauten",{"$f":"'005_Anlagen zu Straßenbauten'!B19","v":5781},null,{"$f":"'001_Unbebaute Grundstücke'!B24","v":"2018-10-22"},{"$f":"'001_Unbebaute Grundstücke'!B26","v":"2018-10-22"},"Klick",1,"Unbebaute Grundstücke",1021,{"$f":"'001_Unbebaute Grundstücke'!B22","v":4865370}]
[null,null,"04",6,"Sonstige Grundstückseinrichtungen",{"$f":"#REF!","v":{"$error":"#REF!"}},null,{"$f":"'002_Straßenbauten'!B19","v":"2018-10-22"},{"$f":"'002_Straßenbauten'!B21","v":"2018-10-22"},"Klick",2,"Straßenbauten",1021,{"$f":"'002_Straßenbauten'!B17","v":4577224},null,null,null,null,{"$f":"'002_Straßenbauten'!B24","v":227008.49}]
[null,null,"04c",7,"Brücken und Tunnel",{"$f":"#REF!","v":{"$error":"#REF!"}},null,{"$f":"'003_Grundstücke z Straßenbauten'!B22","v":"2018-10-15"},{"$f":"'003_Grundstücke z Straßenbauten'!B24","v":"2018-10-15"},"Klick",3,"Grundstücke zu Straßenbauten",1021,{"$f":"'003_Grundstücke z Straßenbauten'!B20","v":218520.00000000003}]
[null,"A.II.2",6,10,"Gebäude",{"$f":"'006_Sonst-Grundstückseinricht'!B20+#REF!","v":{"$error":"#REF!"}},null,{"$f":"'005_Anlagen zu Straßenbauten'!B21","v":"2018-10-24"},{"$f":"'005_Anlagen zu Straßenbauten'!B23","v":"2018-10-24"},"Klick",5,"Anlagen zu Straßenbauten",1021,{"$f":"'005_Anlagen zu Straßenbauten'!B19","v":5781},null,null,null,null,{"$f":"'005_Anlagen zu Straßenbauten'!B26","v":1071}]
[null,null,"06a",11,"Kinder-und Jugendeinrichtungen",{"$f":"#REF!","v":{"$error":"#REF!"}},null,{"$f":"'006_Sonst-Grundstückseinricht'!B22","v":"2018-10-23"},{"$f":"'006_Sonst-Grundstückseinricht'!B24","v":"2018-10-23"},"Klick",6,"Sonstige Grundstückseinrichtungen",1021,{"$f":"'006_Sonst-Grundstückseinricht'!B20","v":383333.33},null,null,null,null,{"$f":"'006_Sonst-Grundstückseinricht'!B27","v":11596.161616161615}]
[null,null,"06c",13,"Wohnbauten",{"$f":"#REF!","v":{"$error":"#REF!"}},null,null,null,2,"A.II.2","Gebäude und Bauten",1022,null,{"$f":"N18","v":621880}]
[null,null,"06d",16,"Seniorenwohnungen",{"$f":"#REF!","v":{"$error":"#REF!"}},null,{"$f":"'010_Gebäude und Bauten'!B22","v":"2018-10-24"},{"$f":"'010_Gebäude und Bauten'!B24","v":"2018-10-24"},"Klick",10,"Gebäude  und Bauten",1022,{"$f":"'010_Gebäude und Bauten'!B20","v":621880},null,null,null,null,{"$f":"'010_Gebäude und Bauten'!B27","v":16683}]
[null,null,"06f",18,"Sport- und Freizeiteinrichtungen",{"$f":"#REF!","v":{"$error":"#REF!"}},null,null,null,2,"A.II.3","Wasser -und Abwasserbauten und -anlagen",1023,null,{"$f":"N20","v":1850095.8145210491}]
[null,null,"06g",19,"Feuerwehrgebäude",{"$f":"#REF!","v":{"$error":"#REF!"}},null,{"$f":"'004_Wasser_Abwasserbauten_Anlag'!B22","v":"2018-10-23"},{"$f":"'004_Wasser_Abwasserbauten_Anlag'!B24","v":"2018-10-23"},"Klick",4,"Wasser- und Abwasserbauten und -anlagen",1023,{"$f":"'004_Wasser_Abwasserbauten_Anlag'!B20","v":1850095.8145210491},null,null,null,null,{"$f":"'004_Wasser_Abwasserbauten_Anlag'!B27","v":95911.254830181002}]
[null,"A.II.3",5,4,"Wasser- und Kanalanlagen",{"$f":"'004_Wasser_Abwasserbauten_Anlag'!B20","v":1850095.8145210491},null,null,null,2,"A.II.4","Sonderanlagen",1024,null,{"$f":"N22","v":239146}]
[null,"A.II.4",91,50,"Sonderanlagen",{"$f":"'050_Sonderanlagen'!B20","v":239146},null,{"$f":"'050_Sonderanlagen'!B22","v":"2018-10-24"},{"$f":"'050_Sonderanlagen'!B24","v":"2018-10-24"},"Klick",50,"Sonderanlagen",1024,{"$f":"'050_Sonderanlagen'!B20","v":239146},null,null,null,null,{"$f":"'050_Sonderanlagen'!B27","v":8178}]
[null,"A.II.5",40,20,"Elektronische Maschinen",{"$f":"#REF!","v":{"$error":"#REF!"}},null,null,null,2,"A.II.5","Technische Anlagen, Fahrzeuge und Maschinen",1025,null,{"$f":"SUM(N24:N26)","v":39534}]
[null,"AII.5",41,20,"Motoren und Turbinen",{"$f":"#REF!","v":{"$error":"#REF!"}},null,{"$f":"'020_Maschinen und masch Anlagen'!$B$22","v":"2018-10-24"},{"$f":"'020_Maschinen und masch Anlagen'!$B$24","v":"2018-10-24"},"Klick",20,"Maschinen und maschinelle Anlagen",1025,{"$f":"'020_Maschinen und masch Anlagen'!B20","v":843},null,null,null,null,{"$f":"'020_Maschinen und masch Anlagen'!B27","v":94}]
[null,null,null,null,null,null,null,{"$f":"'030_Werkzeuge und sonst. Erzeug'!B22","v":"2018-10-26"},{"$f":"'030_Werkzeuge und sonst. Erzeug'!B24","v":"2018-10-26"},"Klick",30,"Werkzeuge und sonstige Erzeugungsmittel",1025,{"$f":"'030_Werkzeuge und sonst. Erzeug'!B20","v":1741},null,null,null,null,{"$f":"'030_Werkzeuge und sonst. Erzeug'!B27","v":249}]
[null,null,null,null,null,null,null,{"$f":"'040_Fahrzeuge'!B22","v":"2018-10-25"},{"$f":"'040_Fahrzeuge'!B24","v":"2018-10-25"},"Klick",40,"Fahrzeuge",1025,{"$f":"'040_Fahrzeuge'!B20","v":36950},null,null,null,null,{"$f":"'040_Fahrzeuge'!B27","v":8200}]
[null,null,null,null,null,null,null,null,null,2,"A.II.6","Amts-, Betriebs- und Geschäftsausstattung",1026,null,{"$f":"N28","v":4362}]
[null,null,null,null,null,null,null,{"$f":"'042_Amts-Betriebs-Geschäftsauss'!B22","v":"2018-10-26"},{"$f":"'042_Amts-Betriebs-Geschäftsauss'!B24","v":"2018-10-26"},"Klick",42,"Amts-, Betriebs- und Geschäftsausstattung",1026,{"$f":"'042_Amts-Betriebs-Geschäftsauss'!B20","v":4362},null,null,null,null,{"$f":"'042_Amts-Betriebs-Geschäftsauss'!B27","v":737}]
[null,null,null,null,null,null,null,null,null,2,"A.II.7","Kulturgüter ",1027,null,{"$f":"N30+N31","v":6781}]
[null,null,null,null,null,null,null,{"$f":"'015-Kulturgüter unbeweglich'!B22","v":"2016-01-01"},{"$f":"'015-Kulturgüter unbeweglich'!B24","v":"2016-01-01"},"Klick",15,"Kulturgüter unbeweglich",1027,{"$f":"'015-Kulturgüter unbeweglich'!B20","v":0}]
[null,null,null,null,null,null,null,{"$f":"'046_Kulturgüter beweglich'!B22","v":"2019-01-23"},{"$f":"'046_Kulturgüter beweglich'!B24","v":"2019-01-23"},"Klick",46,"Kulturgüter beweglich",1027,{"$f":"'046_Kulturgüter beweglich'!B20","v":6781}]
[null,"AII.5",43,20,"Kompressoren und Pumpen",{"$f":"#REF!","v":{"$error":"#REF!"}},null,null,null,2,"A.II.8","Geleistete Anzahlungen für Anlagen und Anlagen im Bau",1028,null,{"$f":"N34+N35+N36+N37+N33","v":0}]
[null,null,null,null,null,null,null,{"$f":"'280_Geleist_Anzahlung_Anlagen'!B22","v":"2016-01-01"},{"$f":"'280_Geleist_Anzahlung_Anlagen'!B24","v":"2016-01-01"},"Klick",280,"Geleistete Anzahlungen für Anlagen",1028,{"$f":"'280_Geleist_Anzahlung_Anlagen'!B20","v":0}]
[null,"A.II.5",44,20,"Metallbearbeitungsmaschinen",{"$f":"#REF!","v":{"$error":"#REF!"}},null,{"$f":"'060_ Im Bau bef GrundstücksEinr'!B22","v":"2016-01-01"},{"$f":"'060_ Im Bau bef GrundstücksEinr'!B24","v":"2016-01-01"},"Klick","060","Im Bau befindliche Grundstückseinrichtungen",1028,{"$f":"'060_ Im Bau bef GrundstücksEinr'!B20","v":0}]
[null,"A.II.5",45,20,"Industrielle Maschinen",{"$f":"#REF!","v":{"$error":"#REF!"}},null,{"$f":"'060_ Im Bau bef GrundstücksEinr'!B22","v":"2016-01-01"},{"$f":"'060_ Im Bau bef GrundstücksEinr'!B24","v":"2016-01-01"},"Klick","061","Im Bau befindliche Gebäude und Bauten",1028,{"$f":"'061_ Im Bau bef Geb_Bauten'!B20","v":0}]
[null,"A.II.5",46,20,"Baumaschinen",{"$f":"#REF!","v":{"$error":"#REF!"}},null,{"$f":"'062_ Im Bau bef Anlagen_Fahrz_M'!B22","v":"2016-01-01"},{"$f":"'062_ Im Bau bef Anlagen_Fahrz_M'!B24","v":"2016-01-01"},"Klick","062","Im Bau befindliche technische Anlagen/Fahrzeuge/Maschinen",1028,{"$f":"'062_ Im Bau bef Anlagen_Fahrz_M'!B20","v":0}]
[null,"A.II.5",47,20,"Landwirtschaftliche Maschinen",{"$f":"#REF!","v":{"$error":"#REF!"}},null,{"$f":"'063_ Im Bau befindl Anlagen'!B22","v":"2016-01-01"},{"$f":"'063_ Im Bau befindl Anlagen'!B24","v":"2016-01-01"},"Klick","063","Im Bau befindliche Anlagen (Amts-, Betriebs- und Geschäftsausstattung)",1028,{"$f":"'063_ Im Bau befindl Anlagen'!B20","v":0}]
[null,"A.II.5",48,20,"Sonstige Maschinen",{"$f":"'020_Maschinen und masch Anlagen'!B20","v":843}]
[null,"A.II.5",49,20,"Mechanische Ausrüstungen",{"$f":"#REF!","v":{"$error":"#REF!"}}]
[null,"A.II.5",50,20,"Lüftungs- u. Kühleinrichtungen",{"$f":"#REF!","v":{"$error":"#REF!"}}]
[null,"A.II.5",51,20,"Elektronische Anlagen",{"$f":"#REF!","v":{"$error":"#REF!"}}]
[null,"A.II.5",52,20,"Fördergeräte",{"$f":"#REF!","v":{"$error":"#REF!"}}]
[null,"A.II.5",20,40,"Kraftfahrzeuge",{"$f":"'040_Fahrzeuge'!B20","v":36950}]
[null,"A.II.5",21,40,"Wasserfahrzeuge",{"$f":"#REF!","v":{"$error":"#REF!"}}]
[null,"A.II.5",22,40,"Luftfahrzeuge",{"$f":"#REF!","v":{"$error":"#REF!"}}]
[null,"A.II.5",23,40,"Schienenfahrzeuge",{"$f":"#REF!","v":{"$error":"#REF!"}}]
[null,"A.II.6",10,42,"Möbel",{"$f":"#REF!","v":{"$error":"#REF!"}}]
[null,"A.II.6",11,42,"Sonst. Einrichtungungsgegenst.",{"$f":"#REF!","v":{"$error":"#REF!"}}]
[null,"A.II.6",12,42,"Heizungen",{"$f":"#REF!","v":{"$error":"#REF!"}}]
[null,"A.II.6",53,30,"Werkzeuge und Geräte",{"$f":"#REF!","v":{"$error":"#REF!"}}]
[null,"A.II.4",54,42,"Mess- und Kontrollinstrumente",{"$f":"#REF!","v":{"$error":"#REF!"}}]
[null,"A.II.4",55,42,"Medizinische Ausrüstungen",{"$f":"#REF!","v":{"$error":"#REF!"}}]
[null,"A.II.4",56,42,"Fotografische Ausrüstungen",{"$f":"#REF!","v":{"$error":"#REF!"}}]
[null,"A.II.5",57,42,"Telekommunikation",{"$f":"#REF!","v":{"$error":"#REF!"}}]
[null,"A.II.6",58,42,"Küchen- und Haushaltsgeräte",{"$f":"#REF!","v":{"$error":"#REF!"}}]
[null,"A.II.6",59,42,"Sonstige Betriebseinrichtungen",{"$f":"#REF!","v":{"$error":"#REF!"}}]
[null,"A.II.6",60,42,"Bekleidung",{"$f":"#REF!","v":{"$error":"#REF!"}}]
[null,"A.II.4",61,42,"Spezialausrüstungen",{"$f":"#REF!","v":{"$error":"#REF!"}}]
[null,"A.II.6",62,42,"Wäsche und Bettzeug",{"$f":"#REF!","v":{"$error":"#REF!"}}]
[null,"A.II.4",70,42,"Tierhaltung",{"$f":"#REF!","v":{"$error":"#REF!"}}]
[null,"A.II.7",80,46,"Sammlungen",{"$f":"#REF!","v":{"$error":"#REF!"}}]
[null,"A.II.7",89,46,"Lehrmittel",{"$f":"#REF!","v":{"$error":"#REF!"}}]
[null,"A.II.6",90,15,"Kulturgüter unbeweglich",{"$f":"#REF!","v":{"$error":"#REF!"}}]
[null,"A.II.8",8,60,"Anlagen im Bau Grundstücke",{"$f":"'015-Kulturgüter unbeweglich'!B20","v":0}]
[null,"A.II.8",9,60,"Anlagen im Bau Gebäude",{"$f":"'060_ Im Bau bef GrundstücksEinr'!B20","v":0}]
[null,null,null,null,"Kontrollsumme",{"$f":"SUM(F5:F65)","v":{"$error":"#REF!"}}]

{"sheet":"070_Aktivierungsfähige Rechte","index":3,"n_rows":51,"n_cols":12,"rows_kept":51,"cut":false,"hidden":false,"merged":[]}
[null,"Zurück"]
[]
[]
[]
[]
[null,"EBK-Konto:",null,null,"Immaterielle Vermögenswerte"]
[null,"070 Aktivierungsfähige Rechte",null,null,null,null,"Ungeschützter Zellbereich zur freien Benützung und Gestaltung"]
[null,null,null,null,null,null,null,null,null,"Der Steirische Leitfaden:"]
[null,null,null,null,1010,null,"Immaterielle Vermögenswerte","Nutzungsdauer"]
[null,null,null,null,1010,null,"Befristete dingliche Rechte","Vertrag"]
[null,null,null,null,1010,null,"Unbefristete dingliche Rechte"," - "]
[null,null,null,null,1010,null,"Lizenzen (ausgenommen Software-Lizenzen)"]
[null,null,null,null,1010,null,"Software (aus Kauf oder Lizenz)","Vertrag/beabsichtigte ND"]
[]
[]
[null,null,null,null," 1. Beispiel","(= Dienstbarkeit; Beispiel 12: Leitfaden-TIROL, Seite 16)"]
[]
[null,null,null,null,"\"Die Gemeinde hat mit einem Bauern einen Dienstbarkeitsvertrag abgeschlossen,"]
[null,"Seitensumme:",null,null,"wonach die Friedhofsbesucher die Wiese des Bauern zwischen Friedhof"]
[null,40200,null,null,"und Parkplatz über einen Weg betreten dürfen. Das Wegerecht wurde gegen"]
[null,"Datum der Erfassung",null,null,"eine Einmalzahlung von € 3.000 über einen Zeitraum von 30 Jahren eingeräumt."]
[null,"2018-10-15",null,null,"Die Gemeinde hat ein dingliches Recht erworben. Es handelt sich um ein befristetes"]
[null,"Datum der Bewertung:",null,null,"dingliches Recht, das als immaterieller Vermögenswert über den Zeitraum"]
[null,"2018-10-15",null,null,"der vertraglichen Vereinbarung abzuschreiben ist (Anlage 7 zu VRV 2015).\""]
[]
[null,"Abschreibung ab 2020",null,null,"Annahme: ","Abschluss des Vertrages im März 2017."]
[null,5100]
[null,null,null,null,"Lösung:"]
[null,null,null,null,null,"Anschaffungswert 1. Jahreshälfte 2017",null,3000]
[null,null,null,null,null,"Nutzungsdauer",null,30]
[null,null,null,null,null,"Abschreibung für 2017, 2018 und 2019",null,{"$f":"H29/H30*3","v":300},"=H29/H30*3"]
[null,null,null,null,null,"Fortgeschriebener Anschaffungswert per 01.01.2020",null,{"$f":"H29-H31","v":2700},"=H29-H31",null,{"$f":"H32","v":2700}," =h32"]
[]
[null,null,null,null,null,"Abschreibung ab dem Haushaltsjahr 2020 pro Jahr ",null,{"$f":"H29/H30","v":100}," =h29/h30"]
[]
[]
[null,null,null,null," 2. Beispiel","(=Ankauf neuer Software)"]
[]
[null,null,null,null,"Die Gemeinde kauft in der 2. Jahreshälfte 2019 eine neue multifunktionale Software zu einem Preis von 40.000 € inklusive Umsatzsteuer."]
[null,null,null,null,"Die beabsichtigte Nutzungsdauer beträgt laut Beschluss des Gemeinderates 8 Jahre."]
[]
[null,null,null,null,"Lösung:"]
[null,null,null,null,null,"Anschaffungswert 2. Jahreshälfte 2019",null,40000]
[null,null,null,null,null,"Nutzungsdauer in Jahren",null,8]
[null,null,null,null,null,"Abschreibung im Jahr 2019",null,{"$f":"H43/H44*0.5","v":2500}," =h43/h44*0,5"]
[null,null,null,null,null,"Fortgeschriebener Anschaffungswert per 01.01.2020",null,{"$f":"H43-H45","v":37500}," =h43-h45",null,{"$f":"H46","v":37500}," =h46"]
[]
[]
[null,null,null,null,null,"Abschreibung ab dem Haushaltsjahr 2020 pro Jahr ",null,{"$f":"H43/H44","v":5000}," =h43/h44"]
[]
[null,null,null,null,null,null,"Abschreibung ab 2020 pro Jahr",{"$f":"H34+H49","v":5100},"Seitensumme ",null,{"$f":"K32+K46","v":40200},"  =k32+k46"]

{"sheet":"000_Bebaute Grundstücke","index":4,"n_rows":88,"n_cols":14,"rows_kept":88,"cut":false,"hidden":false,"merged":[[49,8,49,9],[22,8,22,9],[20,11,20,12],[29,11,29,12],[31,8,31,9],[46,11,46,12]]}
[]
[null,null,null,null,null,null,"Bebaute Grundstücke"]
[null,"01-EBK-SACHANLAGEN'!I11",null,null,"Ungeschützter Zellbereich:"]
[null,null,null,null,null,null,null,null,null,"Der Steirische Leitfaden:"]
[]
[]
[]
[]
[]
[]
[]
[]
[]
[]
[]
[]
[null,null,null,null,"Beispiele:"]
[null,null,null,"1. ","Gemeindeamt und Vorplatz (Grundstückrasterverfahren)"]
[null,"Seitensumme:"]
[null,1944477.75,null,null,null,null,null,"Berechnung:","Länge:","Breite:","m²:","Preis:","Anschaffungs-wert"]
[null,"Datum der Erfassung:",null,null,null,null,null,"Gesamtfläche:",60,60,{"$f":"I21*J21","v":3600}]
[null,"2018-10-22",null,null,null,null,null,"Gemeindeamt:",30,20,{"$f":"I22*J22","v":600},80.19,{"$f":"K22*L22","v":48114}]
[null,"Datum der Bewertung:",null,null,null,null,null,"Vorplatz und Grünstreifen",null,null,{"$f":"K21-K22","v":3000},80.19,{"$f":"K23*L23","v":240570},{"$f":"M23+M22","v":288684}]
[null,"2018-10-22"]
[]
[]
[null,null,null,"2.","Feuerwehrhaus und Vorplatz (Grundstückrasterverfahren)"]
[]
[null,null,null,null,null,null,null,"Berechnung:","Länge:","Breite:","m²:","Preis:","Anschaffungs-wert"]
[null,null,null,null,null,null,null,"Gesamtfläche:",75,35,{"$f":"I30*J30","v":2625}]
[null,null,null,null,null,null,null,"Feuerwehrhaus",45,20,{"$f":"I31*J31","v":900},80.19,{"$f":"K31*L31","v":72171}]
[null,null,null,null,null,null,null,"Vorplatz ",null,null,{"$f":"K30-K31","v":1725},80.19,{"$f":"K32*L32","v":138327.75},{"$f":"M32+M31","v":210498.75}]
[null,"EBK-Konto:"]
[null,"000 Bebaute Grundstücke"]
[]
[]
[]
[]
[]
[]
[]
[null,null,null,null,"Beispiel:"]
[null,null,null,null,"Altstoffsammelzentrum (plus Fläche)"]
[]
[]
[null,null,null,null,null,null,null,"Berechnung:","Länge:","Breite:","m²:","Preis:","Anschaffungs-wert"]
[null,null,null,null,null,null,null,"Gesamtfläche:",60,50,{"$f":"I47*J47","v":3000}]
[null,null,null,null,null,null,null,"Verwaltung",15,15,{"$f":"I48*J48","v":225},80.19,{"$f":"K48*L48","v":18042.75}]
[null,null,null,null,null,null,null,"Lagerraum",60,15,{"$f":"I49*J49","v":900},80.19,{"$f":"K49*L49","v":72171}]
[null,null,null,null,null,null,null,"Manipulation","Rest",null,{"$f":"K47-K48-K49","v":1875},81.19,{"$f":"K50*L50","v":152231.25},{"$f":"SUM(M48:M50)","v":242445}]
[]
[]
[]
[]
[]
[]
[]
[]
[]
[]
[]
[]
[]
[]
[]
[]
[]
[]
[]
[]
[]
[null,null,null,null,"Beispiel:"]
[null,null,null,null,"Freibad"]
[]
[null,null,null,null,null,null,null,"Berechnung:","Länge:","Breite:","m²:","Preis:","Anschaffungs-wert"]
[null,null,null,null,null,null,null,"Gesamtfläche:",150,100,{"$f":"I76*J76","v":15000},80.19,{"$f":"K76*L76","v":1202850},{"$f":"M76","v":1202850}]
[]
[]
[]
[]
[]
[]
[]
[]
[]
[]
[]
[null,null,null,null,null,null,null,null,null,null,null,null,"Seitensumme",{"$f":"N76+N50+N32+N23","v":1944477.75}]

{"sheet":"001_Unbebaute Grundstücke","index":5,"n_rows":39,"n_cols":11,"rows_kept":39,"cut":false,"hidden":false,"merged":[[14,14,14,15]]}
[null,null,"Unbebaute Grundstücke"]
[null,null,null,null,null,"Ungeschützter Zellbereich"]
[null,"01-EBK-SACHANLAGEN'!I12"]
[null,null,null,null,null,null,null,null,"Der Steirische Leitfaden:"]
[]
[]
[]
[]
[]
[]
[]
[null,"EBK-Konto:"]
[null,"001 Unbebaute Grundstücke",null,null,"Beispiel:",null,null,"Fläche","Preis"]
[null,null,null,"1.","Grundstück A , EZ ….",null,"Widmung \"Bauland\", Größe: 500 ar",{"$f":"(500*100)","v":50000},80.19,{"$f":"H14*I14","v":4009500},{"$f":"J14","v":4009500}]
[]
[]
[]
[]
[]
[]
[null,"Seitensumme:"]
[null,4865370]
[null,"Datum der Erfassung:"]
[null,"2018-10-22"]
[null,"Datum der Bewertung:"]
[null,"2018-10-22"]
[]
[]
[null,null,null,null,"Beispiel:","Die Gemeinde verfügt über folgende Flächen:",null,null,"Basispreis",6.07]
[null,null,null,null,null,"  1.1","Landwirtschaftliche Grundstücke","Fläche","in % vom Basispreis"]
[null,null,null,null,null,"a)","Acker, 120 ar",{"$f":"120*100","v":12000},1,{"$f":"H31*I31*$J$29","v":72840}]
[null,null,null,null,null,"b)","Wiese, 2 ha",{"$f":"2*10000","v":20000},1,121400]
[null,null,null,null,null,"c) ","Weingarten, 1 ha",{"$f":"1*10000","v":10000},2,121400]
[null,null,null,null,null,"d)","Gewässer, 220 ar",{"$f":"220*100","v":22000},0.5,66770]
[null,null,null,null,null,"e)","Ödland, 3 ha",{"$f":"3*10000","v":30000},0.1,18210]
[null,null,null,null,null,"  1.2","Wald, 15 ha",{"$f":"15*10000","v":150000},0.5,455250]
[null,null,null,null,null,null,null,null,null,{"$f":"SUM(J31:J36)","v":855870},{"$f":"J37","v":855870}]
[]
[null,null,null,null,null,null,null,null,null,"Seitensumme",{"$f":"K14+K37","v":4865370}]

{"sheet":"002_Straßenbauten","index":6,"n_rows":128,"n_cols":14,"rows_kept":128,"cut":false,"hidden":false,"merged":[[4,8,4,9],[30,4,39,4],[119,8,119,10],[90,5,90,6],[30,5,32,7],[30,8,30,11],[28,8,28,11],[43,6,43,7],[37,5,39,5],[40,4,43,5],[29,8,29,10],[40,6,40,7],[41,6,41,7],[29,6,29,7]]}
[null,"Zurück"]
[null,null,"Hinweis: Hier sind die Aufbauten dieser Straßen darzustellen!"]
[null,null,null,null,null,"Ungeschützter Zellbereich:"]
[]
[]
[]
[null,null,null,null,null,null,null,null,null,null,"Der Steirische Leitfaden:"]
[null,"EBK-Konto:"]
[null,"002 Straßenbauten"]
[]
[]
[]
[]
[]
[null,null,null,null,"Aus dem Leitfaden-TIROL (Seite 22 f)"]
[null,"Seitensumme:",null,null,"6.4. Straße - Aufbau"]
[null,4577224]
[null,"Datum der Erfassung:",null,null,"Beim Straßenaufbau ist nach den erläuternden Bemerkungen zur VRV 2015 eine"]
[null,"2018-10-22",null,null,"getrennte Bewertung nach Decke, Tragschicht und Unterbau nicht notwendig. Es"]
[null,"Datum der Bewertung:",null,null,"wird ausschließlich zwischen unbefestigten und befestigten Anlagen unterschieden."]
[null,"2018-10-22",null,null,"Als unbefestigt werden einfache und locker angefertigte Wege (z.B. Schotterfeldwege)"]
[null,null,null,null,"eingestuft, als befestigt gelten hingegen Anlagen mit einem mittleren"]
[null,"Abschreibung ab 2020",null,null,"Straßenaufbau (z.B. einfache Asphaltdecke, Pflasterstraße). Laut der Abteilung Verkehr"]
[null,227008.49,null,null,"und Straße des Landes Tirol kann man bei Gemeindestraßen durchschnittliche"]
[null,null,null,null,"Neubaukosten von netto € 50,-- bis € 60,-- ansetzen[pro m²]. Bei unbefestigten Anlagen"]
[null,null,null,null,"kann man durchschnittliche Neubaukosten von netto € 25,-- bis € 30,-- [pro m²]ansetzen."]
[]
[]
[null,null,null,null,"Laut der Excel-Exportdatei des Programmes GISquadrat ergeben "]
[null,null,null,null,"sich für die Gemeinde folgende Flächen:",null,null,null,"Nutzungsdauer insgesamt in Jahren",null,null,33]
[null,null,null,null,null,null,null,null,"bisher genutzt in Jahren"]
[null,null,null,null,null,null,null,null,2,8,16,26]
[null,null,null,null,null,null,null,null,0.1,0.3,0.4,0.2]
[null,null,null,null,null,"Straßen befestigt",null,180000,{"$f":"$H$34*I33","v":18000},{"$f":"$H$34*J33","v":54000},{"$f":"$H$34*K33","v":72000},{"$f":"$H$34*L33","v":36000}]
[null,null,null,null,null,"Neubauaufwand  pro m²",55,{"$f":"H34*$G$78","v":0},{"$f":"I34*$G$35","v":990000},{"$f":"J34*$G$35","v":2970000},3960000,1980000]
[null,null,null,null,null,null,null,"Restnutzungsdauer",{"$f":"$L$30-I32","v":31},{"$f":"$L$30-J32","v":25},{"$f":"$L$30-K32","v":17},{"$f":"$L$30-L32","v":7}]
[null,null,null,null,null,null,null,"Herstellungsjahr",2017,2012,2003,1993]
[null,null,null,null,null,null,"Hochbaupreisindex im Jahr 2017",null,153.1,153.1,153.1,153.1]
[null,null,null,null,null,null,"Hochbaupreisindex im Herstellungsjahr",null,153.1,136.80000000000001,104.7,88.1]
[null,null,null,null,null,null,"Wert im Herstellungsjahr",null,{"$f":"I35*I39/L38","v":990000},{"$f":"J35*J39/J38","v":2653794.90529066},{"$f":"K35*K39/K38","v":2708112.3448726325},{"$f":"L35*L39/L38","v":1139372.9588504245}]
[null,null,null,null,null,null,"Abschreibung vom Herstellungsjahr bis 31.12.2019",null,{"$f":"I40/$L$30*I32","v":60000},{"$f":"J40/$L$30*J32","v":643344.21946440241},{"$f":"K40/$L$30*K32","v":1313024.1672109733},{"$f":"L40/$L$30*L32","v":897687.78576094052}]
[null,null,null,null,null,null,"Buchwert per 31.12.2019 (=AB per 01.01.2020)",null,{"$f":"I40-I41","v":930000},{"$f":"J40-J41","v":2010450.6858262576},1395088.1776616592,241685.17308948399,{"$f":"SUM(I42:L42)","v":4577224.0365774008}]
[]
[null,null,null,null,null,null,"Abschreibung ab 2020",null,{"$f":"I42/I36","v":30000},{"$f":"J42/J36","v":80418.027433050302},{"$f":"K42/K36","v":82064.010450685833},{"$f":"L42/L36","v":34526.453298497712},null,{"$f":"SUM(I44:L44)","v":227008.49118223385}]
[]
[]
[]
[]
[]
[]
[]
[]
[]
[]
[]
[]
[]
[]
[]
[]
[]
[]
[]
[]
[]
[]
[]
[]
[]
[]
[]
[]
[]
[]
[]
[]
[]
[]
[]
[]
[]
[]
[]
[]
[]
[]
[]
[]
[]
[]
[]
[]
[]
[]
[]
[]
[]
[]
[]
[]
[]
[]
[]
[]
[]
[]
[]
[]
[]
[]
[]
[]
[]
[]
[]
[]
[]
[]
[]
[null,null,null,null,null,null,null,null,"davon"]
[null,null,null,null,null,null,null,null,"neuwertig","gut","mittel","schlecht"]
[null,null,null,null,null,null,null,null,0,0,0,1]
[null,null,null,null,"2.","Straßen unbefestigt",null,32800,{"$f":"$H$123*I122","v":0},{"$f":"$H$123*J122","v":0},{"$f":"$H$123*K122","v":0},{"$f":"$H$123*L122","v":32800}]
[null,null,null,null,null,"Neubauaufwand  pro m²",30,{"$f":"H123*$G$124","v":984000},{"$f":"I123*$G$124","v":0},{"$f":"J123*$G$124","v":0},{"$f":"K123*$G$124","v":0},{"$f":"L123*$G$124","v":984000}]
[null,null,null,null,null,"Abschlag in %",null,null,0,0.25,0.5,0.8]
[null,null,null,null,null,"Wert des Straßenaufbaus aktuell",null,null,{"$f":"I124*(1-I125)","v":0},{"$f":"J124*(1-J125)","v":0},{"$f":"K124*(1-K125)","v":0},{"$f":"L124*(1-L125)","v":196799.99999999994},{"$f":"SUM(I126:L126)","v":196799.99999999994}]
[null,null,null,null,null,"Nutzungsdauer",10,"Restnutzungsdauer",{"$f":"$G$127*(1-I125)","v":10},{"$f":"$G$127*(1-J125)","v":7.5},{"$f":"$G$127*(1-K125)","v":5},{"$f":"$G$127*(1-L125)","v":1.9999999999999996}]
[null,null,null,null,null,"Jährliche Abschreibung",null,null,{"$f":"I126/I127","v":0},{"$f":"J126/J127","v":0},{"$f":"K126/K127","v":0},{"$f":"L126/L127","v":98400},{"$f":"SUM(I128:L128)","v":98400}]

{"sheet":"003_Grundstücke z Straßenbauten","index":7,"n_rows":81,"n_cols":10,"rows_kept":81,"cut":false,"hidden":false,"merged":[[3,1,7,1]]}
[null,"Zurück"]
[null,null,1,"Bebaute Grundstücke:  GRUNDSTÜCKE ZU STRAßENBAUTEN"]
[]
[]
[null,null,null,null,"Ungeschützter Zellbereich:",null,null,null,null,"Der Steirische Leitfaden:"]
[]
[null,null,null,null,1021,null,"Grundstücke zu Straßenbauten"]
[null,null,null,null,1021,null,"Grundstück_Gemeindestraße 1",0]
[null,"EBK-Konto:",null,null,1021,null,"Grundstück_Gemeindestraße 2",0]
[null,"003 Grundstücke zu Straßenbauten",null,null,1021,null,"Grundstück_Gemeindestraße 3",0]
[null,null,null,null,1021,null,"Grundstück_Gemeindestraße 4",0]
[null,null,null,null,1021,null,"Grundstück_Gemeindestraße 5",0]
[null,null,null,null,1021,null,"Grundstück_Gemeindestraße 6",0]
[null,null,null,null,1021,null,"Grundstück_Gemeindestraße 7",0]
[null,null,null,null,1021,null,"Grundstück_Gemeindestraße 8",0]
[null,null,null,null,1021,null,"Grundstück_Gemeindestraße 9",0]
[null,null,null,null,1021,null,"Grundstück_Gemeindestraße 10",0]
[null,null,null,null,1021,null,"Grundstück_Gemeindestraße 11",0]
[null,"Seitensumme:",null,null,1021,null,"Grundstück_Gemeindestraße 12",0]
[null,{"$f":"J73","v":218520.00000000003},null,null,1021,null,"Grundstück_Gemeindestraße 13",0]
[null,"Datum der Erfassung:",null,null,1021,null,"Grundstück_Gemeindestraße 14",0]
[null,"2018-10-15",null,null,1021,null,"Grundstück_Gemeindestraße n",0]
[null,"Datum der Bewertung:"]
[null,"2018-10-15"]
[]
[null,null,null,null,"Leitfaden-TIROL (Seite 21 f)"]
[]
[null,null,null,null,"6.3. Definition Straße"]
[null,null,null,null,"Gemäß § 2 Abs. (1) des Tiroler Straßengesetzes ist eine Straße eine bauliche Anlage,"]
[null,null,null,null,"die dazu bestimmt ist, dem Verkehr von Fußgängern, von Fahrzeugen einschließlich"]
[null,null,null,null,"Kraftfahrzeugen und von Tieren zu dienen. Eine weitere Unterteilung"]
[null,null,null,null,"einer Straße in ihre Bestandteile kann für Zwecke der Erstbewertung im Sinne"]
[null,null,null,null,"der Verwaltungsökonomie entfallen. Es reicht die Breite bzw. die Länge der befestigten"]
[null,null,null,null,"oder unbefestigten Straße. Grundsätzlich gehören zur Straße:"]
[null,null,null,null,"• Die einzelnen Schichten des Straßenkörpers"]
[null,null,null,null,"• Radwege, Gehwege, kombinierte Rad- und Gehwege"]
[null,null,null,null,"• Verkehrsinseln"]
[null,null,null,null,"• Geschwindigkeitsbremsen"]
[null,null,null,null,"• Fahrbahnmarkierungen"]
[null,null,null,null,"• Fußgängerquerungshilfen"]
[null,null,null,null,"• Pflanzenbeete in der Fahrbahn"]
[null,null,null,null,"• Gräben"]
[null,null,null,null,"• Böschungen"]
[null,null,null,null,"• Bankette"]
[null,null,null,null,"• Straßenabläufe, Straßenentwässerungsanlagen"]
[null,null,null,null,"• Grünstreifen"]
[null,null,null,null,"• Schutzplanken"]
[null,null,null,null,"• Betonschutzwände"]
[]
[null,null,null,null,"Selbständig zu erfassen und einzeln zu bewerten sind:"]
[null,null,null,null,"• Kreisverkehrsanlagen",null,null,null,"Nach Ansicht des Autors sind diese Positionen"]
[null,null,null,null,"• Bushaltestellen",null,null,null,"in 005_Anlagen zu Straßenbauten zu erfassen!"]
[null,null,null,null,"• Unterstände Bushaltestellen"]
[null,null,null,null,"• Parkplätze jeder Art"]
[null,null,null,null,"• Taxistände"]
[null,null,null,null,"• Verkehrsampeln, Signalanlagen"]
[null,null,null,null,"• Parkleitsysteme"]
[null,null,null,null,"• Straßenbeleuchtung"]
[]
[null,null,null,null,"Leitfaden-TIROL (Seite 21 oben)"]
[null,null,null,null,"Es wird empfohlen, das Straßengrundstück"]
[null,null,null,null,"bei Anwendung des Grundstücksrasterverfahrens mit 20 % des Basispreises für"]
[null,null,null,null,"landwirtschaftliche Nutzflächen gemäß Anlage B zu bewerten. Würde man es unter"]
[null,null,null,null,"„sonstige Benützungsarten“ subsumieren, müsste man 20 % des Basispreises"]
[null,null,null,null,"für Bauflächen heranziehen, was zu einer massiven Wertverzerrung führen würde."]
[]
[null,null,null,null,"Beispiel: "]
[null,null,null,null,"Laut der Excel-Exportdatei des Programmes GISquadrat ergeben "]
[null,null,null,null,"sich für die Gemeinde folgende Flächen:"]
[null,null,null,null,null,null,null,null,"Preis (20 % des l+f Basispreises)","Gesamtwert der Straßengrundstücke"]
[null,null,null,null,"1.","Straßen befestigt",null,180000]
[null,null,null,null,"2.","Straßen unbefestigt",null,0]
[null,null,null,null,null,"Summe",null,{"$f":"SUM(H71:H72)","v":180000},{"$f":"H79*0.2","v":1.2140000000000002},{"$f":"H73*I73","v":218520.00000000003}]
[]
[null,null,null,null,null,"Der Preis pro m²:"]
[null,null,null,null,null,null,"Ich nehme für dieses Beispiel"]
[null,null,null,null,null,null,"den Durchschnittspreis (Mitttelwert) der landwirtschaftlichen Grundstücke für"]
[null,null,null,null,null,null,"alle österreichischen Gemeinden:"]
[null,null,null,null,null,null,"Er beträgt pro m²",6.07]
[]
[null,null,null,null,null,null,"Du gibst natürlich jenen Preis ein, der für Deine Gemeinde gilt!"]

{"sheet":"004_Wasser_Abwasserbauten_Anlag","index":8,"n_rows":62,"n_cols":18,"rows_kept":62,"cut":false,"hidden":false,"merged":[[38,4,48,9],[46,10,46,16],[17,12,17,15],[24,10,24,11],[34,12,34,15],[41,10,41,11],[21,4,31,9],[17,4,18,11],[33,4,35,11],[33,12,33,16]]}
[null,"Zurück"]
[null,null,null,null,null,"Wasserbauten, Abwasserbauten und -Anlagen"]
[]
[null,null,null,null,"Ungeschützter Zellbereich:"]
[]
[null,null,null,null,null,null,null,null,null,null,null,"Link zum Steirischen Leitfaden:"]
[]
[null,null,null,null,null,null,null,null,null,null,null,"Der Steirische Leitfaden hat Vorrang!"]
[null,"EBK-Konto:"]
[null,"004 Wasser-und Abwasserbauten und -Anlagen"]
[]
[]
[]
[null,null,null,null,"Beispiel:"]
[null,null,null,"1.","Wasserbauten"]
[]
[null,null,null,null,"Die Wasserleitung für die Gemeinde besteht aus folgenden Systemen:"]
[null,null,null,null,null,null,null,null,null,null,null,null,"Davon errichtet",null,null,null,"GND (Gesamtnutzungsdauer)"]
[null,"Seitensumme:",null,null,null,null,null,null,null,null,null,null,"2010-2019","2000-2009","1980-1999","1960-1979",33]
[null,{"$f":"R47","v":1850095.8145210491},null,null,"Dimension in mm","Hydraulische Funktion","Material","Profil","Mittlere Sohltiefe","Oberfläche","Preis/je Laufm","Gesamt-länge in m",0.1,0.4,0.25,0.25]
[null,"Datum der Erfassung:",null,"a",150,"Pumpleitung","PE 100","Kreis","2,11 m","Gemeindestraße",338,6000,{"$f":"M20*$L$21","v":600},{"$f":"N20*$L$21","v":2400},1500,1500]
[null,"2018-10-23",null,null,null,null,null,null,null,null,"Referenzpreis 2016",null,{"$f":"M21*$K$21","v":202800},{"$f":"N21*$K$21","v":811200},{"$f":"O21*$K$21","v":507000},{"$f":"P21*$K$21","v":507000}]
[null,"Datum der Bewertung:",null,null,null,null,null,null,null,null,"Mittleres Herstellungsjahr",null,2016,2005,1990,1970]
[null,"2018-10-23",null,null,null,null,null,null,null,null,"Baupreisindex 2016",null,149,149,149,149]
[null,null,null,null,null,null,null,null,null,null,"Baupreisindex  im Herstellungsjahr",null,149,110.9,77.8,49.2]
[null,"Abschreibung ab 2020",null,null,null,null,null,null,null,null,"Fiktiver Anschaffungswert 2016",null,{"$f":"M22*M25/M24","v":202800},{"$f":"N22*N25/N24","v":603772.34899328859},{"$f":"O22*O25/O24","v":264728.85906040267},{"$f":"P22*P25/P24","v":167412.08053691275},{"$f":"SUM(M26:P26)","v":1238713.288590604}]
[null,{"$f":"R50","v":95911.254830181002},null,null,null,null,null,null,null,null,"Nutzungsdauer bis 31.12.2019",null,4,15,30,33]
[null,null,null,null,null,null,null,null,null,null,"Abschreibung bis 31.12.2019",null,{"$f":"M26*M27/$Q$19","v":24581.81818181818},{"$f":"N26*N27/$Q$19","v":274441.9768151312},240662.59914582063,167412.08053691275,{"$f":"SUM(M28:P28)","v":707098.47467968275}]
[null,null,null,null,null,null,null,null,null,null,"Buchwert 31.12.2019",null,{"$f":"M26-M28","v":178218.18181818182},{"$f":"N26-N28","v":329330.37217815738},{"$f":"O26-O28","v":24066.259914582042},{"$f":"P26-P28","v":0},{"$f":"SUM(M29:P29)","v":531614.81391092122},{"$f":"Q29","v":531614.81391092122}]
[]
[null,null,null,null,null,null,null,null,null,null,"Restnutzungsdauer",null,{"$f":"$Q$19-M27","v":29},{"$f":"$Q$19-N27","v":18},3,0]
[null,null,null,null,null,null,null,null,null,null,"Abschreibung ab 2020",null,{"$f":"M29/M31","v":6145.454545454546},{"$f":"N29/N31","v":18296.131787675411},{"$f":"O29/O31","v":8022.0866381940141},0,{"$f":"SUM(M32:P32)","v":32463.672971323969},{"$f":"Q32","v":32463.672971323969}]
[]
[]
[null,null,null,null,null,null,null,null,null,null,null,null,"Davon errichtet",null,null,null,"GND (Gesamtnutzungsdauer)"]
[null,null,null,null,null,null,null,null,null,null,null,null,"2010-2019","2000-2009","1980-1999","1960-1979",33]
[null,null,null,null,"Dimension in mm","Hydraulische Funktion","Material","Profil","Mittlere Sohltiefe","Oberfläche","Preis/je Laufm","Gesamt-länge in m",0.3,0.4,0.2,0.1,{"$f":"SUM(M37:P37)","v":0.99999999999999989}]
[null,null,null,"b",150,"Freispiegel-kanal","PP","Kreis","2,11 m","Gemeindestraße",368,8500,{"$f":"M37*$L$38","v":2550},{"$f":"N37*$L$38","v":3400},1700,850,{"$f":"SUM(M38:P38)","v":8500}]
[null,null,null,null,null,null,null,null,null,null,"Referenzpreis 2016",null,{"$f":"M38*$K$38","v":938400},{"$f":"N38*$K$21","v":1149200},{"$f":"O38*$K$21","v":574600},{"$f":"P38*$K$21","v":287300}]
[null,null,null,null,null,null,null,null,null,null,"Mittleres Herstellungsjahr",null,2016,2005,1990,1970]
[null,null,null,null,null,null,null,null,null,null,"Baupreisindex 2016",null,149,149,149,149]
[null,null,null,null,null,null,null,null,null,null,"Baupreisindex  im Herstellungsjahr",null,149,110.9,77.8,49.2]
[null,null,null,null,null,null,null,null,null,null,"Fiktiver Anschaffungswert 2016",null,{"$f":"M39*M42/M41","v":938400},{"$f":"N39*N42/N41","v":855344.16107382555},{"$f":"O39*O42/O41","v":300026.04026845639},{"$f":"P39*P42/P41","v":94866.845637583887},{"$f":"SUM(M43:P43)","v":2188637.046979866}]
[null,null,null,null,null,null,null,null,null,null,"Nutzungsdauer bis 31.12.2019",null,4,15,30,33]
[null,null,null,null,null,null,null,null,null,null,"Abschreibung bis 31.12.2019",null,{"$f":"M43*M44/$Q$19","v":113745.45454545454},{"$f":"N43*N44/$Q$19","v":388792.80048810248},{"$f":"O43*O44/$Q$19","v":272750.94569859671},{"$f":"P43*P44/$Q$19","v":94866.845637583887},{"$f":"SUM(M45:P45)","v":870156.0463697376}]
[null,null,null,null,null,null,null,null,null,null,"Buchwert 31.12.2019",null,{"$f":"M43-M45","v":824654.54545454541},{"$f":"N43-N45","v":466551.36058572307},{"$f":"O43-O45","v":27275.094569859677},{"$f":"P43-P45","v":0},{"$f":"SUM(M46:P46)","v":1318481.000610128},{"$f":"Q46","v":1318481.000610128}]
[null,null,null,null,null,null,null,null,null,null,null,null,null,null,null,null,null,{"$f":"R29+R46","v":1850095.8145210491}]
[null,null,null,null,null,null,null,null,null,null,"Restnutzungsdauer",null,{"$f":"$Q$19-M44","v":29},{"$f":"$Q$19-N44","v":18},3,0]
[null,null,null,null,null,null,null,null,null,null,"Abschreibung ab 2020",null,{"$f":"M46/M48","v":28436.363636363636},{"$f":"N46/N48","v":25919.520032540171},{"$f":"O46/O48","v":9091.6981899532257},0,{"$f":"SUM(M49:P49)","v":63447.581858857033},{"$f":"Q49","v":63447.581858857033}]
[null,null,null,null,null,null,null,null,null,null,null,null,null,null,null,null,null,{"$f":"R32+R49","v":95911.254830181002}]
[]
[]
[]
[]
[]
[]
[]
[]
[]
[]
[]
[null,null,null,null,null,"Der Steirische Leitfaden:"]

{"sheet":"005_Anlagen zu Straßenbauten","index":9,"n_rows":60,"n_cols":14,"rows_kept":60,"cut":false,"hidden":false,"merged":[[5,8,5,9],[23,4,23,8],[19,4,19,8]]}
[null,"Zurück"]
[null,null,null,null,"Anlagen zu Straßenbauten"]
[]
[null,null,null,null,null,"Ungeschützter Zellbereich:"]
[null,null,null,null,null,null,null,null,"Vorschlag Autor:"]
[null,null,null,null,"Beispiele:",null,null,null,null,null,null,null,null,"Link zum Steirischen Leitfaden:"]
[null,null,null,"1.","Straßenbeleuchtung (Lichtpunkte)",null,null,null,null,null,null,null,null,"Der Steirische Leitfaden hat Vorrang!"]
[null,"EBK-Konto:"]
[null,"005  Anlagen zu Straßenbauten"]
[]
[]
[]
[]
[]
[]
[]
[]
[null,"Seitensumme:",null,null,"Lösung mit der Anwendung Referenzwertermittlung",null,null,null,null,null,null,null,"Vorschlag Leitfaden_TIROL:"]
[null,5781,null,null,"des Autors:"]
[null,"Datum der Erfassung:",null,null,"Anzahl der Lichtpunkte aus den Jahren"]
[null,"2018-10-24",null,null,"Jahr",2015,2002,1990,"Summe"]
[null,"Datum der Bewertung:",null,null,"Anzahl",5,20,5,{"$f":"SUM(F22:H22)","v":30}]
[null,"2018-10-24",null,null,"Buchwert per 31.12.2019",4200,1581,0,{"$f":"SUM(F23:H23)","v":5781},{"$f":"I23","v":5781}]
[]
[null,"Abschreibung ab 2020",null,null,"Abschreibung ab 2020",280,791,0,{"$f":"SUM(F25:H25)","v":1071},{"$f":"I25","v":1071}]
[null,{"$f":"J25","v":1071}]
[]
[]
[]
[]
[]
[]
[]
[]
[]
[]
[]
[]
[]
[]
[]
[]
[]
[]
[]
[]
[]
[]
[]
[]
[]
[]
[]
[]
[]
[]
[]
[]
[]
[null,null,null,null,"Der Steirische Leitfaden:"]

{"sheet":"006_Sonst-Grundstückseinricht","index":10,"n_rows":37,"n_cols":14,"rows_kept":37,"cut":false,"hidden":false,"merged":[[32,6,32,11],[31,6,31,12]]}
[null,null,null,null,"Sonstige Grundstückseinrichtungen"]
[null,null,null,null,"Ungeschützter Zellbereich:"]
[]
[null,null,null,null,"Beispiel:",null,"Freibad",null,null,"Link zum Steirischen Leitfaden:"]
[null,"01-EBK-SACHANLAGEN'!A1",null,null,null,null,null,null,null,null,"Der Steirische Leitfaden hat Vorrang!"]
[]
[]
[]
[null,"EBK-Konto:"]
[null,"006 Sonstige Grundstücks-einrichtungen"]
[]
[]
[]
[]
[]
[]
[]
[null,null,null,null,"Hier wird all das erfasst, was sich in dieser Anlage befindet!"]
[null,"Seitensumme:",null,null,"Zum Beispiel:"]
[null,383333.33,null,null," - die beiden Becken"]
[null,"Datum der Erfassung:",null,null," - die Rutschen"]
[null,"2018-10-23",null,null," - die Bänke"]
[null,"Datum der Bewertung:",null,null," - Sprungbrett"]
[null,"2018-10-23",null,null," - Fahnenmast"]
[null,null,null,null," - die Liegen"]
[null,"Abschreibung ab 2020"]
[null,{"$f":"N32","v":11596.161616161615}]
[]
[null,null,null,null,null,null,"Anlagengut","Anschaffungs-wert","Anschaffungs-jahr","Nutzungs-dauer","Bisherige ND","Abschreibung bisher","Buchwert 31.12.2019","Afa ab 2020"]
[null,null,null,null,null,null,"Erwachsenenbecken",400000,2010,33,10,{"$f":"H30*K30/J30","v":121212.12121212122},{"$f":"H30-L30","v":278787.87878787878},{"$f":"M30/J30-K30","v":8438.1175390266289}]
[null,null,null,null,null,null,"Kinderbecken",150000,2010,33,10,{"$f":"H31*K31/J31","v":45454.545454545456},{"$f":"H31-L31","v":104545.45454545454},{"$f":"M31/J31-K31","v":3158.0440771349863}]
[null,null,null,null,null,null,null,null,null,null,null,null,null,{"$f":"SUM(N30:N31)","v":11596.161616161615}]
[null,null,null,null,null,null,"Summe Buchwert ",null,null,null,null,null,{"$f":"SUM(M30:M31)","v":383333.33333333331}]
[]
[null,null,null,null,null,null,null,null,null,null,null,null,{"$f":"M33","v":383333.33333333331}]
[]
[null,null,null,null,"Der Steirische Leitfaden"]

{"sheet":"010_Gebäude und Bauten","index":11,"n_rows":94,"n_cols":14,"rows_kept":94,"cut":false,"hidden":false,"merged":[[65,8,65,9]]}
[null,"Zurück"]
[null,null,null,null,"Gebäude und Bauten"]
[]
[null,null,null,null,"Ungeschützter Zellbereich:"]
[null,null,null,null,null,null,null,null,null,null,"Link zum Steirischen Leitfaden"]
[null,null,null,null,"Beispiel:",null,null,null,null,null,"Der Steirische Leitfaden hat Vorrang!"]
[null,null,null,"1.","Gemeindeamt und Vorplatz"]
[]
[]
[]
[null,"EBK-Konto:"]
[null,"010 Gebäude und Bauten"]
[]
[]
[]
[]
[]
[]
[null,"Seitensumme:"]
[null,621880]
[null,"Datum der Erfassung:"]
[null,"2018-10-24"]
[null,"Datum der Bewertung:"]
[null,"2018-10-24"]
[]
[null,"Abschreibung ab 2020"]
[null,16683]
[]
[]
[null,null,null,null,"1. Gemeindeamt"]
[null,null,null,null,null,null,"Anschaffungswert","Nutzungs-dauer","Anschaffungs-jahr","Nutzung bis 31.12.2019","Abschreibung bis 31.12.2019","Anschaffungswert per 01.01.2020"]
[null,null,null,null,null,null,750000,50,2010,10,{"$f":"G32/H32*J32","v":150000},{"$f":"G32-K32","v":600000},{"$f":"L32","v":600000}]
[]
[null,null,null,null,null,null,null,null,null,null,"Restnutzungs-dauer",{"$f":"H32-J32","v":40}]
[null,null,null,null,null,null,null,null,null,null,"Abschreibung ab 2020",{"$f":"L32/L34","v":15000},null,{"$f":"L35","v":15000}]
[]
[null,null,null,null,"Mit der Anwendung \"Anschaffungswertverfahren\" des Autors ist diese Aufgabe"]
[null,null,null,null,"in 3 Schritten innerhalb von 30 Sekunden erledigt!"]
[]
[]
[]
[]
[]
[]
[]
[]
[]
[]
[]
[]
[]
[]
[]
[]
[]
[]
[]
[]
[]
[]
[]
[]
[]
[]
[]
[]
[]
[]
[null,null,null,null,"2. Vorplatz"]
[]
[null,null,null,null,"Der Vorplatz wurde bereits im Jahr 2000 geschaffen und nicht verändert. "]
[null,null,null,null,"Anschaffungswert nicht mehr nachvollziehbar!"]
[null,null,null,null,"Daher Referenzwertverfahren!"]
[null,null,null,null,"Der Referenzwert aus dem Jahr 2017 beträgt € 40,50 pro m² (verlegt)"]
[]
[null,null,null,null,"Ermittlung der Fläche laut obiger Skizze:"]
[null,null,null,null,null,null,"Breite","Länge","Gesamt"]
[null,null,null,null,null,null,45,60,{"$f":"G78*H78","v":2700}]
[null,null,null,null," - Gemeindeamt",null,20,30,{"$f":"G79*H79","v":600}]
[null,null,null,null,null,null,"Fläche des Vorplatzes",null,{"$f":"I78-I79","v":2100}]
[null,null,null,null,null,null,"Preis pro m²",null,40.5]
[null,null,null,null,null,null,"Referenzwert gesamt",null,{"$f":"I80*I81","v":85050}]
[]
[null,null,null,null,"Lösung anhand der Anwendung ",null,null,"\"Ersatzwertverfahren(Referenzwertverfahren)_Schweiger\":"]
[]
[null,null,null,null,null,null,null,"Lösung: ","Buchwert 31.12.2019",null,21880,null,{"$f":"K86","v":21880}]
[]
[null,null,null,null,null,null,null,null,"Abschreibung ab 2020",null,1683,null,null,{"$f":"K88","v":1683}]
[]
[null,null,null,null,null,null,null,null,null,null,null,"Seitensumme",{"$f":"M32+M86","v":621880},{"$f":"N35+N88","v":16683}]
[]
[]
[]
[null,null,null,null,"Der Steirische Leitfaden:"]

{"sheet":"015-Kulturgüter unbeweglich","index":12,"n_rows":24,"n_cols":8,"rows_kept":24,"cut":false,"hidden":false,"merged":[[1,4,1,5],[1,6,1,7]]}
[]
[null,"01-EBK-SACHANLAGEN'!A1",null,null,1027,null,"Kulturgüter unbeweglich"]
[]
[null,null,null,null,null,"Ungeschützter Zellbereich:"]
[]
[null,null,null,null,"Aus dem Steirischen Leitfaden:",null,null,"Der Steirische Leitfaden hat Vorrang!"]
[]
[]
[null,"EBK-Konto:"]
[null,"015 Kulturgüter unbeweglich"]
[]
[]
[]
[]
[]
[]
[]
[]
[null,"Seitensumme:"]
[null,0]
[null,"Datum der Erfassung::"]
[null,"2016-01-01"]
[null,"Datum der Bewertung:"]
[null,"2016-01-01"]

{"sheet":"020_Maschinen und masch Anlagen","index":13,"n_rows":28,"n_cols":13,"rows_kept":28,"cut":false,"hidden":false,"merged":[[17,5,17,7]]}
[]
[null,"Zurück",null,"Maschinen und maschinelle Anlagen"]
[null,null,null,"Ungeschützter Zellbereich:"]
[]
[null,null,null,"Beispiel: ",null,null,null,null,null,"Link zum Steirischen Leitfaden"]
[null,null,null,null,null,null,null,null,null,"Der Steirische Leitfaden hat Vorrang!"]
[]
[null,null,null,null,null,null,null,null,null,null,null,null,"Der Vorschlag des Autors:"]
[]
[]
[]
[null,"EBK-Konto:"]
[null,"020 Maschinen und maschinelle Anlagen"]
[null,null,null,null,"Lösung mit Referenzwertverfahren_Schweiger!",null,null,null,null,"Suchbegriff: \"Transformatoren\""]
[]
[null,null,null,null,null,"Buchwert 31.12.2019 (=AW per 01.01.2020):",null,null,null,843,{"$f":"J16","v":843}]
[]
[null,null,null,null,null,"Abschreibung ab 2020 ",null,null,null,94,{"$f":"J18","v":94}]
[null,"Seitensumme:"]
[null,843]
[null,"Datum der Erfassung:"]
[null,"2018-10-24"]
[null,"Datum der Bewertung:"]
[null,"2018-10-24"]
[]
[null,"Abschreibung ab 2020"]
[null,94]
[null,null,null,null,"Der Steirische Leitfaden:"]

{"sheet":"030_Werkzeuge und sonst. Erzeug","index":14,"n_rows":27,"n_cols":10,"rows_kept":27,"cut":false,"hidden":false,"merged":[[16,3,16,5],[32,3,32,5],[1,3,1,7]]}
[null,"Zurück"]
[null,null,null,"Werkzeuge und sonstige Erzeugungsmittel"]
[null,null,null,null,null,null,null,null,null," "]
[null,null,null,null,null,"Ungeschützter Zellbereich:"]
[]
[null,null,null,"Hochgrasmäher",null,null,null,null,null,"Der Steirische Leitfaden:"]
[null,null,null,null,null,null,null,null,null,"Der Steirische Leitfaden hat Vorrang!"]
[]
[]
[]
[]
[null,"EBK-Konto"]
[null,"030 Werkzeuge und sonstige Erzeugungsmittel",null,"Ermittlung mit Anschaffungswertverfahren_Schweiger!"]
[null,null,null,"Lösung:"]
[null,null,null,"Buchwert 31.12.2019 (=AW per 01.01.2020):",null,null,null,1741,{"$f":"H15","v":1741}]
[]
[null,null,null,"Abschreibung ab 2020 ",null,null,null,219,249]
[]
[null,"Seitensumme:"]
[null,1741]
[null,"Datum der Erfassung:"]
[null,"2018-10-26"]
[null,"Datum der Bewertung:"]
[null,"2018-10-26"]
[]
[null,"Abschreibung ab 2020"]
[null,249]

{"sheet":"040_Fahrzeuge","index":15,"n_rows":61,"n_cols":10,"rows_kept":61,"cut":false,"hidden":false,"merged":[[19,4,19,6],[35,4,35,6],[53,4,53,6]]}
[null,"Zurück"]
[null,null,null,"040 Fahrzeuge"]
[]
[null,null,null,null,null,null,null,"Ungeschützter Zellbereich:"]
[null,null,null,null,"Beispiele"]
[null,null,null,"1.","Klein-Lkw",null,null,null,"Link zum Steirischen Leitfaden:"]
[]
[null,null,null,null,null,null,null,null,"Der Steirische Leitfaden hat Vorrang!"]
[]
[null,"EBK-Konto:"]
[null,"040 Fahrzeuge"]
[]
[]
[]
[]
[null,null,null,null,"Ermittlung mit Anschaffungswertverfahren_Schweiger!"]
[null,null,null,null,"Lösung:"]
[null,null,null,null,"Buchwert 31.12.2019 (=AW per 01.01.2020):",null,null,null,8750,{"$f":"I18","v":8750}]
[null,"Seitensumme:"]
[null,36950,null,null,"Abschreibung ab 2020 ",null,null,null,3500,{"$f":"I20","v":3500}]
[null,"Datum der Erfassung:"]
[null,"2018-10-25",null,"2.","Klein-Bus für Kindertransport"]
[null,"Datum der Bewertung:"]
[null,"2018-10-25"]
[]
[null,"Abschreibung ab 2020"]
[null,8200]
[]
[]
[]
[]
[null,null,null,null,"Ermittlung mit Anschaffungswertverfahren_Schweiger!"]
[null,null,null,null,"Lösung:"]
[null,null,null,null,"Buchwert 31.12.2019 (=AW per 01.01.2020):",null,null,null,28200,{"$f":"I34","v":28200}]
[]
[null,null,null,null,"Abschreibung ab 2020 ",null,null,null,4700,{"$f":"I36","v":4700}]
[]
[null,null,null,"2.","Traktor"]
[]
[]
[]
[]
[]
[]
[]
[null,null,null,null,"Lösung:"]
[null,null,null,null,"Die Nutzungsdauer für einen Traktor beträgt 10 Jahre!"]
[null,null,null,null,"Somit ist der Traktor komplett abgeschrieben und es"]
[null,null,null,null,"fällt keine neue Abschreibung an!"]
[]
[null,null,null,null,"Lösung:"]
[null,null,null,null,"Buchwert 31.12.2019 (=AW per 01.01.2020):",null,null,null,0,{"$f":"I52","v":0}]
[]
[null,null,null,null,"Abschreibung ab 2020 ",null,null,null,0,{"$f":"I54","v":0}]
[]
[null,null,null,null,null,null,"Seitensumme Buchwert",null,null,{"$f":"J52+J34+J18","v":36950}]
[]
[null,null,null,null,null,null,"Seitensumme AfA ab 2020",null,null,{"$f":"J54+J36+J20","v":8200}]
[]
[]
[null,null,null,null,"Der Steirische Leitfaden:"]

{"sheet":"042_Amts-Betriebs-Geschäftsauss","index":16,"n_rows":59,"n_cols":10,"rows_kept":59,"cut":false,"hidden":false,"merged":[[1,3,1,5],[18,4,18,6],[33,4,33,6],[51,4,51,6]]}
[null,"Zurück"]
[null,null,null,"Amts-, Betriebs- und Geschäftsausstattung"]
[null,null,null,null,null,null,null,null,null," "]
[null,null,null,null,null,"Ungeschützter Zellbereich:"]
[null,null,null,"Beispiele:"]
[null,null,null,null,null,null,null,"Link zum Steirischen Leitfaden:"]
[null,null,null,"1. ","Stühle für den Sitzungssaal"]
[null,null,null,null,null,null,null,"Der Steirische Leitfaden hat Vorrang!"]
[]
[null,"EBK-Konto"]
[null,"042 Amts-Betriebs-und Geschäftsausstattung"]
[]
[]
[]
[null,null,null,null,"Ermittlung mit Anschaffungswertverfahren_Schweiger!"]
[null,null,null,null,"Lösung:"]
[null,null,null,null,"Buchwert 31.12.2019 (=AW per 01.01.2020):",null,null,2880,{"$f":"H17","v":2880}]
[]
[null,"Seitensumme:",null,null,"Abschreibung ab 2020 ",null,null,480,{"$f":"H19","v":480}]
[null,4362]
[null,"Datum der Erfassung:",null,"2. ","Anschaffung einer neuen Boden-Waage für den Bauhof "]
[null,"2018-10-26"]
[null,"Datum der Bewertung:"]
[null,"2018-10-26"]
[]
[null,"Abschreibung ab 2020"]
[null,737]
[]
[]
[null,null,null,null,"Ermittlung mit Anschaffungswertverfahren_Schweiger!"]
[null,null,null,null,"Lösung:"]
[null,null,null,null,"Buchwert 31.12.2019 (=AW per 01.01.2020):",null,null,1188,{"$f":"H32","v":1188}]
[]
[null,null,null,null,"Abschreibung ab 2020 ",null,null,198,{"$f":"H34","v":198}]
[]
[null,null,null,"3. ","Panzerschrank für Veranstaltungszentrum"]
[]
[]
[]
[]
[]
[]
[]
[]
[]
[]
[]
[null,null,null,null,"Ermittlung mit Referenzwertverfahren_Schweiger!"]
[null,null,null,null,"Lösung:"]
[null,null,null,null,"Buchwert 31.12.2019 (=AW per 01.01.2020):",null,null,294,{"$f":"H50","v":294}]
[]
[null,null,null,null,"Abschreibung ab 2020 ",null,null,59,{"$f":"H52","v":59}]
[]
[null,null,null,null,null,null,"Seitensumme Buchwert",null,null,{"$f":"I50+I32+I17","v":4362}]
[]
[null,null,null,null,null,null,"Seitensumme Abschreibung",null,null,{"$f":"I52+I34+I19","v":737}]
[]
[]
[null,null,null,null,"Der Steirische Leitfaden:"]

{"sheet":"046_Kulturgüter beweglich","index":17,"n_rows":24,"n_cols":11,"rows_kept":24,"cut":false,"hidden":false,"merged":[[1,3,1,5]]}
[null,"Zurück"]
[null,null,null,"Kulturgüter beweglich"]
[null,null,null,null,null,null,null,null,null," "]
[null,null,null,null,null,"Ungeschützter Zellbereich:"]
[null,null,null,"1027 Kulturgüter  beweglich"]
[null,null,null,null,null,null,null,"Steirischer Leitfaden",null,null,"Der Steirische Leitfaden hat Vorrang!"]
[null,null,null,null,null,null,null,"Link zum Steirischen Leitfaden"]
[null,"EBK-Konto",null,"Beispiel:"]
[null,"046 Kulturgüter beweglich"]
[]
[]
[]
[]
[]
[]
[]
[]
[]
[null,"Seitensumme:"]
[null,6781]
[null,"Datum der Erfassung:"]
[null,"2019-01-23"]
[null,"Datum der Bewertung:"]
[null,"2019-01-23"]

{"sheet":"050_Sonderanlagen","index":18,"n_rows":56,"n_cols":10,"rows_kept":56,"cut":false,"hidden":false,"merged":[[49,3,49,5],[22,5,22,6],[1,3,1,5],[39,3,39,5],[44,3,44,5]]}
[null,"Zurück"]
[null,null,null,"Sonderanlagen"]
[null,null,null,null,null,null,null,null,null," "]
[null,null,null,null,null,"Ungeschützter Zellbereich:"]
[]
[null,"EBK-Konto",null,"1.","Altstoffsammelzentrum (plus Fläche)",null,null,null,"Link zum Steirischen Leitfaden"]
[null,"050 Sonderanlagen"]
[null,null,null,null,null,null,null,null,"Der Steirische Leitfaden hat Vorrang!"]
[]
[]
[]
[]
[]
[]
[]
[]
[]
[]
[null,"Seitensumme:",null,null,"Berechnung:","Länge:","Breite:","m²:"]
[null,{"$f":"J52","v":239146},null,null,"Gesamtfläche:",60,50,{"$f":"F20*G20","v":3000}]
[null,"Datum der Erfassung:",null,null,"Verwaltung",15,15,{"$f":"F21*G21","v":225}]
[null,"2018-10-24",null,null,"Lagerraum",60,15,{"$f":"F22*G22","v":900}]
[null,"Datum der Bewertung:",null,null,"Manipulation","Rest",null,{"$f":"H20-H21-H22","v":1875},{"$f":"H23*50","v":93750}]
[null,"2018-10-24"]
[]
[null,"Abschreibung ab 2020"]
[null,{"$f":"J54","v":8178}]
[]
[]
[]
[]
[]
[]
[]
[]
[]
[null,null,null,"Verwaltungsgebäude:",null,{"$f":"225*2.6","v":585},"Preis pro m³",376]
[null,null,null,null,"Buchwert 31.12.2019 (=AW per 01.01.2020):",null,null,79110,{"$f":"H38","v":79110}]
[]
[null,null,null,"Abschreibung ab 2020 ",null,null,null,3164,{"$f":"H40","v":3164}]
[]
[null,null,null,"Lagerraum:"]
[null,null,null,null,"Buchwert 31.12.2019 (=AW per 01.01.2020):",null,null,79875,{"$f":"H43","v":79875}]
[]
[null,null,null,"Abschreibung ab 2020 ",null,null,null,2250,{"$f":"H45","v":2250}]
[]
[null,null,null,"Vorplatz:"]
[null,null,null,null,"Buchwert 31.12.2019 (=AW per 01.01.2020):",null,null,80161,{"$f":"H48","v":80161}]
[]
[null,null,null,"Abschreibung ab 2020 ",null,null,null,2764,{"$f":"H50","v":2764}]
[]
[null,null,null,null,null,null,"Seitensumme Buchwert",null,null,{"$f":"I38+I43+I48","v":239146}]
[]
[null,null,null,null,null,null,"Seitensumme Abschreibung",null,null,{"$f":"I40+I45+I50","v":8178}]
[]
[null,null,null,null,"Der Steirische Leitfaden:"]

{"sheet":"280_Geleist_Anzahlung_Anlagen","index":19,"n_rows":24,"n_cols":7,"rows_kept":24,"cut":false,"hidden":false,"merged":[]}
[null,"Zurück"]
[null,null,null,null,"Im Bau befindliche Grundstückseinrichtungen:"]
[null,null,null,null,null,null,"Ungeschützter Zellbereich:"]
[null,null,null,null,"1028 Geleistete Anzahlungen für Anlagen"]
[]
[null,"EBK-Konto:"]
[null,"280 Geleistete Anzahlungen für Anlagen"]
[]
[]
[]
[]
[]
[]
[]
[]
[]
[]
[]
[null,"Seitensumme:"]
[null,0]
[null,"Datum der Erfassung:"]
[null,"2016-01-01"]
[null,"Datum der Bewertung:"]
[null,"2016-01-01"]

{"sheet":"060_ Im Bau bef GrundstücksEinr","index":20,"n_rows":24,"n_cols":7,"rows_kept":24,"cut":false,"hidden":false,"merged":[]}
[null,"Zurück"]
[null,null,null,null,"Im Bau befindliche Grundstückseinrichtungen:"]
[null,null,null,null,null,null,"Ungeschützter Zellbereich:"]
[null,null,null,null,"1028 Im Bau befindliche Grundstückseinrichtungen"]
[]
[null,"EBK-Konto:",null,null,"Der Steirische Leitfaden:"]
[null,"060  Im Bau befindliche Grundstücks-einrichtungen"]
[]
[]
[]
[]
[]
[]
[]
[]
[]
[]
[]
[null,"Seitensumme:"]
[null,0]
[null,"Datum der Erfassung:"]
[null,"2016-01-01"]
[null,"Datum der Bewertung:"]
[null,"2016-01-01"]

{"sheet":"061_ Im Bau bef Geb_Bauten","index":21,"n_rows":24,"n_cols":7,"rows_kept":24,"cut":false,"hidden":false,"merged":[]}
[null,"Zurück",null,"Im Bau befindliche Gebäude und Bauten:"]
[null,null,null,null,null,null,"Ungeschützter Zellbereich:"]
[null,null,null,null,"1028  Im Bau befindliche Gebäude und Bauten"]
[null,null,null,null,"Der Steirische Leitfaden:"]
[]
[]
[]
[null,"EBK-Konto:"]
[null,"061 Im Bau befindliche Gebäude und Bauten"]
[]
[]
[]
[]
[]
[]
[]
[]
[]
[null,"Seitensumme:"]
[null,0]
[null,"Datum der Erfassung:"]
[null,"2016-01-01"]
[null,"Datum der Bewertung:"]
[null,"2016-01-01"]

{"sheet":"062_ Im Bau bef Anlagen_Fahrz_M","index":22,"n_rows":24,"n_cols":7,"rows_kept":24,"cut":false,"hidden":false,"merged":[]}
[null,"Zurück"]
[null,null,null,null,"Im Bau befindliche technische Anlagen/Fahrzeuge/Maschinen"]
[null,null,null,null,null,null,"Ungeschützter Zellbereich:"]
[null,null,null,null,"1028 Im Bau befindliche technische Anlagen/Fahrzeuge/Maschinen"]
[]
[]
[null,"EBK-Konto:"]
[null,"062 Im Bau befindliche technische Anlagen/Fahrzeuge/Maschinen"]
[]
[]
[]
[]
[]
[]
[]
[]
[]
[]
[null,"Seitensumme:"]
[null,0]
[null,"Datum der Erfassung:"]
[null,"2016-01-01"]
[null,"Datum der Bewertung:"]
[null,"2016-01-01"]

{"sheet":"063_ Im Bau befindl Anlagen","index":23,"n_rows":24,"n_cols":7,"rows_kept":24,"cut":false,"hidden":false,"merged":[[5,1,5,2]]}
[null,"Zurück"]
[]
[null,null,null,null,null,null,"Ungeschützter Zellbereich:"]
[null,null,null,null,"1028 Im Bau befindliche Anlagen (Amts-, Betriebs-und Geschäftsausstattung)"]
[null,"EBK-Konto:"]
[null,"063 Im Bau befindliche Anlagen (Amts-,Betriebs-und Geschäftsausstattung)"]
[]
[]
[]
[]
[]
[]
[]
[]
[]
[]
[]
[]
[null,"Seitensumme:"]
[null,0]
[null,"Datum der Erfassung:"]
[null,"2016-01-01"]
[null,"Datum der Bewertung:"]
[null,"2016-01-01"]

{"sheet":"Hintergrund ","index":24,"n_rows":0,"n_cols":0,"rows_kept":0,"cut":false,"hidden":false,"merged":[]}